fUST/lending_fUST_20240801
["ID","MTS","AMOUNT","RATE_DAILY","PERIOD"]
[333765032,1722461447460,-500.0,0.00013972,2]
[333765033,1722461447470,-500.0,0.00013972,2]
[333765034,1722461447481,-502.36816933,0.00013972,2]
[333765035,1722461447491,-500.0,0.00013972,2]
[333765036,1722461447500,-500.0,0.00013972,2]
[333765037,1722461447510,-1066.94,0.00013972,2]
[333765038,1722461447519,-611.77,0.00013972,2]
[333765039,1722461447529,-543.21,0.00013972,2]
[333765040,1722461447538,-500.0,0.00013972,2]
[333765041,1722461447547,-151.0,0.00013972,2]
[333765042,1722461447558,-500.0,0.00013972,2]
[333765043,1722461447567,-548.380905,0.00013972,2]
[333765044,1722461447577,-548.380905,0.00013972,2]
[333765045,1722461447587,-500.0,0.00013972,2]
[333765046,1722461447598,-500.0,0.00013972,2]
[333765047,1722461447607,-500.0,0.00013972,2]
[333765048,1722461447617,-1192.85,0.00013972,2]
[333765049,1722461447627,-1073.05,0.00013972,2]
[333765050,1722461447637,-500.0,0.00013972,2]
[333765051,1722461447647,-500.0,0.00013972,2]
[333765052,1722461447656,-500.0,0.00013972,2]
[333765053,1722461447667,-500.0,0.00013972,2]
[333765054,1722461447679,-500.0,0.00013972,2]
[333765055,1722461447688,-500.0,0.00013972,2]
[333765056,1722461447698,-500.0,0.00013972,2]
[333765057,1722461447707,-686.29,0.00013972,2]
[333765058,1722461447718,-500.0,0.00013972,2]
[333765059,1722461447728,-500.0,0.00013972,2]
[333765060,1722461447737,-500.0,0.00013972,2]
[333765061,1722461447749,-500.0,0.00013972,2]
[333765062,1722461447761,-500.0,0.00013972,2]
[333765063,1722461447771,-500.0,0.00013972,2]
[333765064,1722461447782,-500.0,0.00013972,2]
[333765065,1722461447792,-500.0,0.00013972,2]
[333765066,1722461447802,-151.0,0.00013972,2]
[333765067,1722461447811,-500.0,0.00013972,2]
[333765068,1722461447821,-500.0,0.00013972,2]
[333765069,1722461447831,-500.0,0.00013972,2]
[333765070,1722461447841,-500.0,0.00013972,2]
[333765071,1722461447852,-500.0,0.00013972,2]
[333765072,1722461447861,-500.0,0.00013972,2]
[333765073,1722461447870,-500.0,0.00013972,2]
[333765074,1722461447881,-500.0,0.00013972,2]
[333765075,1722461447890,-688.1,0.00013972,2]
[333765076,1722461447900,-448.141344,0.00013972,2]
[333765077,1722461447909,-500.0,0.00013972,2]
[333765078,1722461448006,-500.0,0.00013972,2]
[333765079,1722461448017,-448.141344,0.00013972,2]
[333765080,1722461448026,-500.0,0.00013972,2]
[333765081,1722461448035,-500.0,0.00013972,2]
[333765082,1722461448045,-558.9745894,0.00013972,2]
[333765083,1722461448055,-500.0,0.00013972,2]
[333765084,1722461448065,-500.0,0.00013972,2]
[333765085,1722461448074,-502.58801939,0.00013972,2]
[333765086,1722461448084,-500.0,0.00013972,2]
[333765087,1722461448094,-500.0,0.00013972,2]
[333765088,1722461448103,-526.65,0.00013972,2]
[333765089,1722461448114,-1520.97,0.00013972,2]
[333765090,1722461448123,-500.0,0.00013972,2]
[333765091,1722461448133,-500.0,0.00013972,2]
[333765092,1722461448142,-500.0,0.00013972,2]
[333765093,1722461448152,-510.83937489,0.00013972,2]
[333765094,1722461448162,-659.97,0.00013972,2]
[333765095,1722461448172,-683.72,0.00013972,2]
[333765096,1722461448182,-500.0,0.00013972,2]
[333765097,1722461448192,-649.22,0.00013972,2]
[333765098,1722461448203,-712.86,0.00013972,2]
[333765099,1722461448213,-812.53,0.00013972,2]
[333765100,1722461448223,-500.0,0.00013972,2]
[333765101,1722461448233,-574.09764681,0.00013972,2]
[333765102,1722461448243,-500.0,0.00013972,2]
[333765103,1722461448253,-500.0,0.00013972,2]
[333765104,1722461448262,-500.0,0.00013972,2]
[333765105,1722461448271,-272.03462921,0.00013972,2]
[333765106,1722461448280,-523.71,0.00013972,2]
[333765107,1722461448289,-500.0,0.00013972,2]
[333765108,1722461448299,-257.77649434,0.00013972,2]
[333765109,1722461448308,-500.0,0.00013972,2]
[333765110,1722461448318,-184.358229,0.00013972,2]
[333765111,1722461448328,-151.0,0.00013972,2]
[333765112,1722461448339,-500.0,0.00013972,2]
[333765113,1722461448348,-184.358229,0.00013972,2]
[333765114,1722461448358,-500.0,0.00013972,2]
[333765115,1722461448368,-500.0,0.00013972,2]
[333765116,1722461448379,-616.88,0.00013972,2]
[333765117,1722461448389,-151.0,0.00013972,2]
[333765118,1722461448399,-500.0,0.00013972,2]
[333765119,1722461448409,-743.52,0.00013972,2]
[333765120,1722461448419,-500.0,0.00013972,2]
[333765121,1722461448429,-500.0,0.00013972,2]
[333765122,1722461448440,-151.0,0.00013972,2]
[333765123,1722461448451,-151.0,0.00013972,2]
[333765124,1722461448461,-500.0,0.00013972,2]
[333765125,1722461448471,-500.0,0.00013972,2]
[333765126,1722461448482,-151.0,0.00013972,2]
[333765127,1722461448491,-151.0,0.00013972,2]
[333765128,1722461448501,-500.0,0.00013972,2]
[333765129,1722461448510,-151.0,0.00013972,2]
[333765130,1722461448521,-151.0,0.00013972,2]
[333765131,1722461448530,-500.0,0.00013972,2]
[333765132,1722461448539,-500.0,0.00013972,2]
[333765133,1722461448550,-500.0,0.00013972,2]
[333765134,1722461448559,-500.0,0.00013972,2]
[333765135,1722461448569,-500.0,0.00013972,2]
[333765136,1722461448579,-500.0,0.00013972,2]
[333765137,1722461448588,-176.135577,0.00013972,2]
[333765138,1722461448598,-500.0,0.00013972,2]
[333765139,1722461448607,-176.135577,0.00013972,2]
[333765140,1722461448617,-151.0,0.00013972,2]
[333765141,1722461448628,-500.0,0.00013972,2]
[333765142,1722461448638,-500.0,0.00013972,2]
[333765143,1722461448648,-500.0,0.00013972,2]
[333765144,1722461448657,-507.52,0.00013972,2]
[333765145,1722461448669,-500.0,0.00013972,2]
[333765146,1722461448681,-3622.8,0.00013972,2]
[333765147,1722461448691,-500.0,0.00013972,2]
[333765148,1722461448701,-500.0,0.00013972,2]
[333765149,1722461448712,-1150.37,0.00013972,2]
[333765150,1722461448721,-198.86513,0.00013972,2]
[333765151,1722461448731,-198.86513,0.00013972,2]
[333765152,1722461448740,-198.86513,0.00013972,2]
[333765153,1722461448750,-198.86513,0.00013972,2]
[333765154,1722461448761,-500.0,0.00013972,2]
[333765155,1722461448771,-500.0,0.00013972,2]
[333765156,1722461448781,-500.0,0.00013972,2]
[333765157,1722461448790,-1670.68335625,0.00013972,2]
[333765158,1722461448813,-89.26664375,0.00013972,2]
[333765159,1722461448823,-500.0,0.00013972,2]
[333765160,1722461448834,-1340.04,0.00013972,2]
[333765161,1722461448845,-500.0,0.00013972,2]
[333765162,1722461448855,-500.0,0.00013972,2]
[333765163,1722461448866,-554.65556923,0.00013972,2]
[333765164,1722461448876,-500.0,0.00013972,2]
[333765165,1722461448885,-500.0,0.00013972,2]
[333765166,1722461448895,-500.0,0.00013972,2]
[333765167,1722461448905,-500.0,0.00013972,2]
[333765168,1722461448916,-500.0,0.00013972,2]
[333765169,1722461448926,-500.0,0.00013972,2]
[333765170,1722461448936,-820.72,0.00013972,2]
[333765171,1722461448946,-500.0,0.00013972,2]
[333765172,1722461448956,-500.0,0.00013972,2]
[333765173,1722461448965,-500.0,0.00013972,2]
[333765174,1722461448975,-500.0,0.00013972,2]
[333765175,1722461448985,-500.0,0.00013972,2]
[333765176,1722461448995,-500.0,0.00013972,2]
[333765177,1722461449004,-500.0,0.00013972,2]
[333765178,1722461449013,-500.0,0.00013972,2]
[333765179,1722461449023,-151.0,0.00013972,2]
[333765180,1722461449033,-500.0,0.00013972,2]
[333765181,1722461449043,-1038.94,0.00013972,2]
[333765182,1722461449052,-894.18,0.00013972,2]
[333765183,1722461449062,-500.0,0.00013972,2]
[333765184,1722461449072,-644.77474,0.00013972,2]
[333765185,1722461449082,-644.77474,0.00013972,2]
[333765186,1722461449092,-631.82,0.00013972,2]
[333765187,1722461449102,-644.77474,0.00013972,2]
[333765188,1722461449111,-644.77474,0.00013972,2]
[333765189,1722461449122,-151.0,0.00013972,2]
[333765190,1722461449132,-151.0,0.00013972,2]
[333765191,1722461449142,-500.0,0.00013972,2]
[333765192,1722461449152,-500.0,0.00013972,2]
[333765193,1722461449162,-500.0,0.00013972,2]
[333765194,1722461449171,-500.0,0.00013972,2]
[333765195,1722461449181,-500.0,0.00013972,2]
[333765196,1722461449191,-448.75559054,0.00013972,2]
[333765197,1722461449201,-500.0,0.00013972,2]
[333765198,1722461449211,-500.0,0.00013972,2]
[333765199,1722461449221,-500.0,0.00013972,2]
[333765200,1722461449231,-1503.62,0.00013972,2]
[333765201,1722461449241,-500.0,0.00013972,2]
[333765202,1722461449252,-771.47,0.00013972,2]
[333765203,1722461449261,-299.27040077,0.00013972,2]
[333765204,1722461449271,-1920.41,0.00013972,2]
[333765205,1722461449280,-500.0,0.00013972,2]
[333765206,1722461449290,-8794.51,0.00013972,2]
[333765207,1722461449299,-500.0,0.00013972,2]
[333765208,1722461449318,-1517.94,0.00013972,2]
[333765209,1722461449327,-500.0,0.00013972,2]
[333765210,1722461449336,-627.980463,0.00013972,2]
[333765211,1722461449346,-627.980463,0.00013972,2]
[333765212,1722461449359,-500.0,0.00013972,2]
[333765213,1722461449369,-151.0,0.00013972,2]
[333765214,1722461449379,-627.980463,0.00013972,2]
[333765215,1722461449389,-627.980463,0.00013972,2]
[333765216,1722461449401,-500.0,0.00013972,2]
[333765217,1722461449411,-3036.69,0.00013972,2]
[333765218,1722461449421,-500.0,0.00013972,2]
[333765219,1722461449431,-500.0,0.00013972,2]
[333765220,1722461449441,-6069.27,0.00013972,2]
[333765221,1722461449452,-500.0,0.00013972,2]
[333765222,1722461449463,-979.28,0.00013972,2]
[333765223,1722461449473,-500.0,0.00013972,2]
[333765224,1722461449484,-2827.17,0.00013972,2]
[333765225,1722461449495,-500.0,0.00013972,2]
[333765226,1722461449505,-500.0,0.00013972,2]
[333765227,1722461449515,-1536.81,0.00013972,2]
[333765228,1722461449526,-504.03913562,0.00013972,2]
[333765229,1722461449537,-1294.81,0.00013972,2]
[333765230,1722461449546,-1176.86,0.00013972,2]
[333765231,1722461449556,-983.68,0.00013972,2]
[333765232,1722461449567,-500.0,0.00013972,2]
[333765233,1722461449577,-1386.76,0.00013972,2]
[333765234,1722461449588,-500.0,0.00013972,2]
[333765235,1722461449598,-1306.72,0.00013972,2]
[333765236,1722461449608,-512.42,0.00013972,2]
[333765237,1722461449617,-500.0,0.00013972,2]
[333765238,1722461449626,-355.485639,0.00013972,2]
[333765239,1722461449637,-355.485639,0.00013972,2]
[333765240,1722461449647,-355.485639,0.00013972,2]
[333765241,1722461449657,-355.485639,0.00013972,2]
[333765242,1722461449670,-500.0,0.00013972,2]
[333765243,1722461449680,-2437.71,0.00013972,2]
[333765244,1722461449690,-500.0,0.00013972,2]
[333765245,1722461449699,-500.0,0.00013972,2]
[333765246,1722461449710,-500.0,0.00013972,2]
[333765247,1722461449719,-500.0,0.00013972,2]
[333765248,1722461449729,-1822.59,0.00013972,2]
[333765249,1722461449740,-500.0,0.00013972,2]
[333765250,1722461449752,-562.1,0.00013972,2]
[333765251,1722461449762,-503.62001656,0.00013972,2]
[333765252,1722461449772,-1432.79,0.00013972,2]
[333765253,1722461449782,-500.0,0.00013972,2]
[333765254,1722461449793,-500.0,0.00013972,2]
[333765255,1722461449803,-559.44,0.00013972,2]
[333765256,1722461449822,-1265.58,0.00013972,2]
[333765257,1722461449831,-588.84,0.00013972,2]
[333765258,1722461449841,-500.0,0.00013972,2]
[333765259,1722461449856,-151.0,0.00013972,2]
[333765260,1722461449865,-500.0,0.00013972,2]
[333765261,1722461449875,-500.0,0.00013972,2]
[333765262,1722461449884,-168.101289,0.00013972,2]
[333765263,1722461449893,-618.06,0.00013972,2]
[333765264,1722461449982,-205.54255952,0.00013972,2]
[333765265,1722461449992,-500.0,0.00013972,2]
[333765266,1722461450002,-168.101289,0.00013972,2]
[333765267,1722461450011,-151.0,0.00013972,2]
[333765268,1722461450021,-1369.18,0.00013972,2]
[333765269,1722461450031,-500.0,0.00013972,2]
[333765270,1722461450040,-638.56,0.00013972,2]
[333765271,1722461450050,-689.68,0.00013972,2]
[333765272,1722461450063,-500.0,0.00013972,2]
[333765273,1722461450080,-500.0,0.00013972,2]
[333765274,1722461450089,-2690.22,0.00013972,2]
[333765275,1722461450099,-500.0,0.00013972,2]
[333765276,1722461450109,-564.53,0.00013972,2]
[333765277,1722461450119,-861.04,0.00013972,2]
[333765278,1722461450128,-1372.06,0.00013972,2]
[333765279,1722461450138,-151.0,0.00013972,2]
[333765280,1722461450148,-151.0,0.00013972,2]
[333765281,1722461450158,-500.0,0.00013972,2]
[333765282,1722461450168,-378.5948523,0.00013972,2]
[333765283,1722461450177,-500.0,0.00013972,2]
[333765284,1722461450187,-765.71,0.00013972,2]
[333765285,1722461450198,-523.97,0.00013972,2]
[333765286,1722461450207,-500.0,0.00013972,2]
[333765287,1722461450216,-1680.77,0.00013972,2]
[333765288,1722461450226,-151.0,0.00013972,2]
[333765289,1722461450235,-7612.61,0.00013972,2]
[333765290,1722461450246,-835.94,0.00013972,2]
[333765291,1722461450255,-500.0,0.00013972,2]
[333765292,1722461450266,-8624.05,0.00013972,2]
[333765293,1722461450275,-1516.56,0.00013972,2]
[333765294,1722461450286,-411.61926312,0.00013972,2]
[333765295,1722461450296,-500.0,0.00013972,2]
[333765296,1722461450306,-679.16,0.00013972,2]
[333765297,1722461450320,-740.588459,0.00013972,2]
[333765298,1722461450330,-500.0,0.00013972,2]
[333765299,1722461450340,-740.588459,0.00013972,2]
[333765300,1722461450350,-524.88,0.00013972,2]
[333765301,1722461450360,-992.53,0.00013972,2]
[333765302,1722461450372,-500.0,0.00013972,2]
[333765303,1722461450383,-3142.98,0.00013972,2]
[333765304,1722461450393,-519.81,0.00013972,2]
[333765305,1722461450403,-624.58,0.00013972,2]
[333765306,1722461450414,-670.57,0.00013972,2]
[333765307,1722461450425,-500.0,0.00013972,2]
[333765308,1722461450435,-1188.45,0.00013972,2]
[333765309,1722461450444,-1116.95,0.00013972,2]
[333765310,1722461450454,-500.0,0.00013972,2]
[333765311,1722461450465,-534.11,0.00013972,2]
[333765312,1722461450474,-547.3,0.00013972,2]
[333765313,1722461450484,-566.85,0.00013972,2]
[333765314,1722461450493,-2939.88,0.00013972,2]
[333765315,1722461450502,-500.0,0.00013972,2]
[333765316,1722461450511,-500.0,0.00013972,2]
[333765317,1722461450520,-500.0,0.00013972,2]
[333765318,1722461450530,-500.0,0.00013972,2]
[333765319,1722461450539,-500.0,0.00013972,2]
[333765320,1722461450549,-500.0,0.00013972,2]
[333765321,1722461450559,-289.18175283,0.00014006,2]
[333765322,1722461450569,-1406.0,0.00014183,2]
[333765323,1722461450580,-152.101764,0.00014246,2]
[333765324,1722461450590,-151.0,0.00014246,2]
[333765325,1722461450600,-151.0,0.00014246,2]
[333765326,1722461450610,-151.0,0.00014246,2]
[333765327,1722461450619,-500.0,0.00014246,2]
[333765328,1722461450628,-151.0,0.00014246,2]
[333765329,1722461450637,-500.0,0.00014246,2]
[333765330,1722461450646,-500.0,0.00014246,2]
[333765331,1722461450656,-500.0,0.00014246,2]
[333765332,1722461450667,-500.0,0.00014246,2]
[333765333,1722461450680,-604.97,0.00014246,2]
[333765334,1722461450691,-500.0,0.00014246,2]
[333765335,1722461450699,-500.0,0.00014246,2]
[333765336,1722461450709,-500.0,0.00014246,2]
[333765337,1722461450718,-500.0,0.00014246,2]
[333765338,1722461450727,-500.0,0.00014246,2]
[333765339,1722461450736,-151.0,0.00014246,2]
[333765340,1722461450745,-151.0,0.00014246,2]
[333765341,1722461450760,-500.0,0.00014246,2]
[333765342,1722461450771,-151.0,0.00014246,2]
[333765343,1722461450780,-500.0,0.00014246,2]
[333765344,1722461450791,-631.1,0.00014246,2]
[333765345,1722461450800,-202.56169854,0.00014246,2]
[333765346,1722461450810,-500.0,0.00014246,2]
[333765347,1722461450820,-500.0,0.00014246,2]
[333765348,1722461450830,-596.79832244,0.00014246,2]
[333765349,1722461450839,-805.92,0.00014246,2]
[333765350,1722461450848,-197.905927,0.00014246,2]
[333765351,1722461450858,-1505.82,0.00014246,2]
[333765352,1722461450868,-500.0,0.00014246,2]
[333765353,1722461450877,-151.0,0.00014246,2]
[333765354,1722461450886,-151.0,0.00014246,2]
[333765355,1722461450895,-151.0,0.00014246,2]
[333765356,1722461450905,-553.82563815,0.00014246,2]
[333765357,1722461450914,-183.82804503,0.00014246,2]
[333765358,1722461450923,-500.0,0.00014246,2]
[333765359,1722461450933,-520.00751244,0.00014246,2]
[333765360,1722461450943,-500.0,0.00014246,2]
[333765361,1722461450953,-151.0,0.00014246,2]
[333765362,1722461450963,-500.0,0.00014246,2]
[333765363,1722461450974,-775.09685466,0.00014246,2]
[333765364,1722461450990,-419.57314534,0.00014246,2]
[333765365,1722461451000,-162.84439305,0.00014246,2]
[333765366,1722461451207,-337.15560695,0.00014246,2]
[333765367,1722461451216,-133.33857,0.00014246,2]
[333765368,1722461451228,-1047.72143,0.00014246,2]
[333765369,1722461451238,-475.65132692,0.00014246,2]
[333765370,1722461451249,-24.34867308,0.00014246,2]
[333765371,1722461451259,-286.85677905,0.00014246,2]
[333765372,1722461451270,-213.14322095,0.00014246,2]
[333765373,1722461451280,-500.0,0.00014246,2]
[333765374,1722461451289,-1066.94,0.00014246,2]
[333765375,1722461451298,-611.77,0.00014246,2]
[333765376,1722461451307,-543.21,0.00014246,2]
[333765377,1722461451317,-151.0,0.00014246,2]
[333765378,1722461451326,-26.13677904,0.00014246,2]
[333765379,1722461451338,-124.86322096,0.00014246,2]
[333765380,1722461451348,-500.0,0.00014246,2]
[333765381,1722461451357,-548.380905,0.00014246,2]
[333765382,1722461451366,-548.380905,0.00014246,2]
[333765383,1722461451376,-548.380905,0.00014246,2]
[333765384,1722461451385,-548.380905,0.00014246,2]
[333765385,1722461451394,-500.0,0.00014246,2]
[333765386,1722461451404,-500.0,0.00014246,2]
[333765387,1722461451413,-500.0,0.00014246,2]
[333765388,1722461451422,-1173.55012013,0.00014246,2]
[333765389,1722461451434,-19.29987987,0.00014246,2]
[333765390,1722461451444,-1073.05,0.00014246,2]
[333765391,1722461451453,-500.0,0.00014246,2]
[333765392,1722461451462,-500.0,0.00014246,2]
[333765393,1722461451472,-500.0,0.00014246,2]
[333765394,1722461451481,-500.0,0.00014246,2]
[333765395,1722461451490,-686.29,0.00014246,2]
[333765396,1722461451499,-469.38675127,0.00014246,2]
[333765397,1722461451508,-500.0,0.00014246,2]
[333765398,1722461451518,-500.0,0.00014246,2]
[333765399,1722461451527,-151.0,0.00014246,2]
[333765400,1722461451536,-151.0,0.00014246,2]
[333765401,1722461451546,-500.0,0.00014246,2]
[333765402,1722461451555,-500.0,0.00014246,2]
[333765403,1722461451566,-529.77416453,0.00014246,2]
[333765404,1722461451576,-518.09102675,0.00014246,2]
[333765405,1722461451585,-500.0,0.00014246,2]
[333765406,1722461451594,-500.0,0.00014246,2]
[333765407,1722461451604,-688.1,0.00014246,2]
[333765408,1722461451613,-500.0,0.00014246,2]
[333765409,1722461451700,-448.141344,0.00014246,2]
[333765410,1722461451711,-448.141344,0.00014246,2]
[333765411,1722461451721,-500.0,0.00014246,2]
[333765412,1722461451731,-448.141344,0.00014246,2]
[333765413,1722461451741,-448.141344,0.00014246,2]
[333765414,1722461451751,-500.0,0.00014246,2]
[333765415,1722461451761,-500.0,0.00014246,2]
[333765416,1722461451771,-500.0,0.00014246,2]
[333765417,1722461451781,-500.0,0.00014246,2]
[333765418,1722461451790,-526.65,0.00014246,2]
[333765419,1722461451800,-1520.97,0.00014246,2]
[333765420,1722461451811,-500.0,0.00014246,2]
[333765421,1722461451820,-504.88825234,0.00014246,2]
[333765422,1722461451830,-659.97,0.00014246,2]
[333765423,1722461451840,-683.72,0.00014246,2]
[333765424,1722461451850,-649.22,0.00014246,2]
[333765425,1722461451859,-712.86,0.00014246,2]
[333765426,1722461451868,-812.53,0.00014246,2]
[333765427,1722461451878,-500.0,0.00014246,2]
[333765428,1722461451888,-500.0,0.00014246,2]
[333765429,1722461451898,-523.71,0.00014246,2]
[333765430,1722461451908,-500.0,0.00014246,2]
[333765431,1722461451917,-184.358229,0.00014246,2]
[333765432,1722461451926,-184.358229,0.00014246,2]
[333765433,1722461451935,-151.0,0.00014246,2]
[333765434,1722461451945,-151.0,0.00014246,2]
[333765435,1722461451955,-505.34550588,0.00014246,2]
[333765436,1722461451965,-184.358229,0.00014246,2]
[333765437,1722461451975,-184.358229,0.00014246,2]
[333765438,1722461451985,-616.88,0.00014246,2]
[333765439,1722461451994,-500.0,0.00014246,2]
[333765440,1722461452005,-743.52,0.00014246,2]
[333765441,1722461452014,-500.0,0.00014246,2]
[333765442,1722461452023,-500.0,0.00014246,2]
[333765443,1722461452033,-151.0,0.00014246,2]
[333765444,1722461452042,-500.0,0.00014246,2]
[333765445,1722461452052,-500.0,0.00014246,2]
[333765446,1722461452063,-151.0,0.00014246,2]
[333765447,1722461452074,-500.0,0.00014246,2]
[333765448,1722461452083,-151.0,0.00014246,2]
[333765449,1722461452093,-500.0,0.00014246,2]
[333765450,1722461452103,-500.0,0.00014246,2]
[333765451,1722461452113,-500.0,0.00014246,2]
[333765452,1722461452124,-519.80740388,0.00014246,2]
[333765453,1722461452135,-176.135577,0.00014246,2]
[333765454,1722461452146,-176.135577,0.00014246,2]
[333765455,1722461452155,-500.0,0.00014246,2]
[333765456,1722461452165,-176.135577,0.00014246,2]
[333765457,1722461452177,-176.135577,0.00014246,2]
[333765458,1722461452188,-500.0,0.00014246,2]
[333765459,1722461452200,-500.0,0.00014246,2]
[333765460,1722461452209,-500.0,0.00014246,2]
[333765461,1722461452218,-507.52,0.00014246,2]
[333765462,1722461452228,-500.0,0.00014246,2]
[333765463,1722461452237,-3622.8,0.00014246,2]
[333765464,1722461452247,-500.0,0.00014246,2]
[333765465,1722461452259,-1150.37,0.00014246,2]
[333765466,1722461452269,-198.86513,0.00014246,2]
[333765467,1722461452279,-198.86513,0.00014246,2]
[333765468,1722461452290,-276.23406306,0.00014246,2]
[333765469,1722461452300,-230.56124379,0.00014246,2]
[333765470,1722461452311,-1759.95,0.00014246,2]
[333765471,1722461452321,-512.97098069,0.00014246,2]
[333765472,1722461452330,-500.0,0.00014246,2]
[333765473,1722461452340,-500.0,0.00014246,2]
[333765474,1722461452350,-500.0,0.00014246,2]
[333765475,1722461452360,-500.0,0.00014246,2]
[333765476,1722461452369,-820.72,0.00014246,2]
[333765477,1722461452379,-500.0,0.00014246,2]
[333765478,1722461452388,-500.0,0.00014246,2]
[333765479,1722461452397,-500.0,0.00014246,2]
[333765480,1722461452406,-500.0,0.00014246,2]
[333765481,1722461452416,-500.0,0.00014246,2]
[333765482,1722461452427,-500.0,0.00014246,2]
[333765483,1722461452436,-1038.94,0.00014246,2]
[333765484,1722461452445,-894.18,0.00014246,2]
[333765485,1722461452455,-500.0,0.00014246,2]
[333765486,1722461452464,-644.77474,0.00014246,2]
[333765487,1722461452473,-631.82,0.00014246,2]
[333765488,1722461452483,-644.77474,0.00014246,2]
[333765489,1722461452492,-151.0,0.00014246,2]
[333765490,1722461452501,-500.0,0.00014246,2]
[333765491,1722461452511,-500.0,0.00014246,2]
[333765492,1722461452520,-500.0,0.00014246,2]
[333765493,1722461452529,-500.0,0.00014246,2]
[333765494,1722461452539,-500.0,0.00014246,2]
[333765495,1722461452548,-500.0,0.00014246,2]
[333765496,1722461452557,-1503.62,0.00014246,2]
[333765497,1722461452570,-500.0,0.00014246,2]
[333765498,1722461452580,-771.47,0.00014246,2]
[333765499,1722461452589,-1920.41,0.00014246,2]
[333765500,1722461452598,-8794.51,0.00014246,2]
[333765501,1722461452607,-500.0,0.00014246,2]
[333765502,1722461452617,-1517.94,0.00014246,2]
[333765503,1722461452626,-500.0,0.00014246,2]
[333765504,1722461452636,-627.980463,0.00014246,2]
[333765505,1722461452645,-627.980463,0.00014246,2]
[333765506,1722461452654,-500.0,0.00014246,2]
[333765507,1722461452664,-3036.69,0.00014246,2]
[333765508,1722461452678,-6069.27,0.00014246,2]
[333765509,1722461452688,-500.0,0.00014246,2]
[333765510,1722461452699,-979.28,0.00014246,2]
[333765511,1722461452712,-500.0,0.00014246,2]
[333765512,1722461452722,-2827.17,0.00014246,2]
[333765513,1722461452733,-500.0,0.00014246,2]
[333765514,1722461452743,-510.73546076,0.00014246,2]
[333765515,1722461452756,-1536.81,0.00014246,2]
[333765516,1722461452767,-1294.81,0.00014246,2]
[333765517,1722461452776,-1176.86,0.00014246,2]
[333765518,1722461452786,-983.68,0.00014246,2]
[333765519,1722461452795,-1386.76,0.00014246,2]
[333765520,1722461452806,-500.0,0.00014246,2]
[333765521,1722461452820,-1306.72,0.00014246,2]
[333765522,1722461452831,-512.42,0.00014246,2]
[333765523,1722461452840,-500.0,0.00014246,2]
[333765524,1722461452850,-355.485639,0.00014246,2]
[333765525,1722461452859,-355.485639,0.00014246,2]
[333765526,1722461452868,-2437.71,0.00014246,2]
[333765527,1722461452877,-502.79478643,0.00014246,2]
[333765528,1722461452886,-500.0,0.00014246,2]
[333765529,1722461452895,-1822.59,0.00014246,2]
[333765530,1722461452905,-500.0,0.00014246,2]
[333765531,1722461452914,-562.1,0.00014246,2]